Cogmind - Beta 13 @@@ ROGUE MODE // 2024.05.18 @ 17:56:33 Player: H3-RMN Result: Destroyed by G-47 Trooper with Particle Gun Performance ------------- Evolutions (0) 0 Regions Visited (1) 200 Robots Destroyed (2) 10 Value Destroyed (22) 22 Prototype IDs (0) 0 Alien Tech Used (0) 0 Bonus (0) 0 TOTAL SCORE: 232 Bonus ------- None Cogmind --------- Core Integrity 0/250 Matter 282/300 Energy 125/125 System Corruption 0% Temperature Cool (9) Movement Rolling (110) Ox2 Location -10/Materials Parts ------- > --- POWER (1) -------- Light Ion Engine > --- PROPULSION (2) --- Light Treads Wheel > --- UTILITY (2) ------ Large Storage Unit Seismic Detector > --- WEAPON (2) ------- EM Shotgun Mini Grenade Launcher > --- INVENTORY (15) --- Wheel Compact Wheel Compact Wheel Combat Airjet VTOL Module VTOL Module VTOL Module VTOL Module Small Storage Unit Large Storage Unit Improved Terrain Scanner Launcher Guidance Computer Shield Generator EM Shotgun EM Shotgun Peak State ------------ > --- POWER ------------ Light Ion Engine > --- PROPULSION ------- Light Treads Wheel > --- UTILITY ---------- Large Storage Unit Seismic Detector > --- WEAPON ----------- EM Shotgun Mini Grenade Launcher > --- INVENTORY -------- Wheel Compact Wheel Compact Wheel Combat Airjet VTOL Module VTOL Module VTOL Module VTOL Module Small Storage Unit Large Storage Unit Improved Terrain Scanner Launcher Guidance Computer Shield Generator EM Shotgun Light Assault Rifle [Rating: 12] Favorites ----------- Power Light Ion Engine Engine Light Ion Engine Propulsion Light Treads Treads Light Treads Wheel Wheel Utility Small Storage Unit Device Tractor Beam Storage Small Storage Unit Weapon Assault Rifle Energy Gun EM Pulse Gun Ballistic Gun Assault Rifle Launcher Mini Grenade Launcher Build | -11 -10 ------- Run | Yrd Mat Slots Evolved . | . . Power . | . . Propulsion . | . . Utility . | . . Weapon . | . . Parts Attached 20 | 17 3 Power 3 | 3 . Engine 3 | 3 . Core . | . . Reactor . | . . Propulsion 6 | 6 . Treads 2 | 2 . Leg . | . . Wheel 4 | 4 . Hover . | . . Flight . | . . Utility 5 | 4 1 Device 3 | 3 . Storage 2 | 1 1 Processor . | . . Hackware . | . . Protection . | . . Artifact . | . . Weapon 6 | 4 2 Energy Gun 2 | 1 1 Energy Cannon . | . . Ballistic Gun 2 | 2 . Ballistic Cannon . | . . Launcher 2 | 1 1 Special Weapon . | . . Impact Weapon . | . . Slashing Weapon . | . . Piercing Weapon . | . . Special Melee Weapon . | . . Unidentified Prototypes . | . . Parts Lost 8 | 8 . Power 2 | 2 . Propulsion 3 | 3 . Utility 1 | 1 . Weapon 2 | 2 . Highest Loss Streak 8 | 8 . To Critical Strikes 1 | 1 . Average Slot Usage (%) 100 | . 100 Engine 14 | . 14 Treads 14 | . 14 Wheel 14 | . 14 Device 14 | . 14 Storage 14 | . 14 Energy Gun 3 | . 3 Ballistic Gun 10 | . 10 Launcher 14 | . 14 Naked Turns . | . . Heaviest Build 28 | 13 28 Greatest Support 20 | 20 10 Greatest Overweight (x) 2 | 1 2 Average Overweight (x) . | . 1 Largest Inventory Capacity 15 | 8 15 Average Capacity 8 | 7 14 Most Carried 15 | 6 15 Average Carried 5 | 5 10 Final Capacity 15 | 8 15 Final Carried 15 | 6 15 Class Distribution -------------------- 100% | Scavenger-Mutant Dominant Class ---------------- Scavenger-Mutant | -10/Materials Resources | -11 -10 ----------- Run | Yrd Mat Matter Collected 494 | 478 16 Remotely 223 | 223 . Salvage Created 202 | 186 16 Parts 6 | 4 2 Haulers Intercepted . | . . Recyclers Shooed . | . . Parts Field Recycled . | . . Retrieved Matter . | . . Parts Self-Destructed . | . . Prevented . | . . Kills | -11 -10 ------- Run | Yrd Mat Combat Hostiles Destroyed 9 | 9 . Guns 7 | 7 . AOE 2 | 2 . Classes Destroyed 3 | 2 1 Recycler 1 | 1 . Watcher 1 | . 1 Assembled 9 | 9 . Best Kill Streak 2 | 2 1 Combat Bots Only 2 | 2 . Max Kills in Single Turn 1 | 1 1 Gunslinging . | . . Exploded 1 | 1 . Melee . | . . Uniques/NPCs Destroyed . | . . Combat | -11 -10 -------- Run | Yrd Mat Hostile Shots Fired 65 | 64 1 Missed 16 | 16 . Damage Taken 1047 | 1032 15 Core 258 | 243 15 Absorbed by Shields . | . . Core Remaining (%) 2 | 2 . Volleys Fired 59 | 58 1 Largest 2 | 2 1 Hottest 60 | 60 45 Shots Fired 80 | 79 1 Gun 78 | 77 1 Cannon . | . . Launcher 2 | 2 . Special . | . . Kinetic 70 | 70 . Thermal . | . . Explosive 2 | 2 . Electromagnetic 8 | 7 1 Robot Hit Streak 5 | 5 2 Robot Miss Streak 3 | 3 1 Penetration Max . | . . Secondary Targets . | . . Shots Hit Robots 44 | 43 1 Core Hits 27 | 26 1 Critical Kills . | . . Critical Parts Destroyed 1 | 1 . Critical Strikes 1 | 1 . Destroy 1 | 1 . Melee Attacks . | . . Impact . | . . Slashing . | . . Piercing . | . . Sneak Attacks . | . . Combat Hostiles . | . . Follow-up Attacks . | . . Damage Inflicted 476 | 460 16 Guns 404 | 388 16 Cannons . | . . Explosions 72 | 72 . Melee . | . . Ramming . | . . Kinetic 329 | 329 . Thermal . | . . Explosive 72 | 72 . Electromagnetic 75 | 59 16 Impact . | . . Slashing . | . . Piercing . | . . Highest Corruption . | . . Average Corruption . | . . Corruption Purged . | . . Corruption Blocked . | . . Overload Shots . | . . Overflow Damage . | . . Projectiles . | . . Explosions . | . . Melee . | . . Knockbacks . | . . Impact . | . . Kinetic . | . . Secondary . | . . Self-Inflicted Damage . | . . Shots . | . . Rammed . | . . Targets Rammed . | . . Kicked . | . . Crushed . | . . Highest Temperature 20 | 20 4 Average Temperature 17 | 19 3 Received Heat Transfer 9 | . 9 Siege Activations . | . . Robots Corrupted . | . . Combat Hostiles . | . . Parts Fried . | . . Impact Corruptions . | . . Robots Melted . | . . Combat Hostiles . | . . Parts Melted . | . . Heat Transferred . | . . Parts Sabotaged . | . . Parts Stolen . | . . Parts Stripped . | . . Power Chain Reactions . | . . Alert | -11 -10 ------- Run | Yrd Mat Peak Influence 20 | 20 7 Initial . | . . Average . | . . Maximum Alert Level . | . . Low Security (%) 100 | 100 100 Level 1 . | . . Level 2 . | . . Level 3 . | . . Level 4 . | . . Level 5 . | . . High Security . | . . Max Security . | . . Squads Dispatched . | . . Investigation . | . . Extermination . | . . Reinforcement . | . . Assault . | . . Garrison . | . . Intercept . | . . Searches Triggered . | . . Construction Impeded . | . . Haulers Reinforced . | . . Active Scanning Responses . | . . Cargo Convoy Interrupts . | . . Stealth | -11 -10 --------- Run | Yrd Mat Distress Signals . | . . Communications Jammed . | . . Distress Signals . | . . Times Spotted 13 | 9 4 Peak Tracking Total 3 | 3 2 Tactical Retreats 1 | 1 . Traps | -11 -10 ------- Run | Yrd Mat Traps Triggered . | . . Indirectly . | . . Trap Hack Attempts . | . . Triggered . | . . Disarmed . | . . Reprogrammed . | . . Reused . | . . Traps Extracted . | . . Installed . | . . Triggered . | . . Machines | -11 -10 ---------- Run | Yrd Mat Machines Disabled . | . . Max in Single Turn . | . . Machines Repaired . | . . Machines Dismantled . | . . Machines Sabotaged . | . . Overloaded Fab Kills . | . . Hacking | -11 -10 --------- Run | Yrd Mat Machines Accessed . | . . Terminals . | . . Fabricators . | . . Repair Stations . | . . Recycling Units . | . . Scanalyzers . | . . Garrison Access . | . . Total Hacks . | . . Successful . | . . Failed . | . . Catastrophic . | . . Database Lockouts . | . . Manual . | . . Terminals . | . . Fabricators . | . . Repair Stations . | . . Recycling Units . | . . Scanalyzers . | . . Garrison Access . | . . Terminal Hacks . | . . Fabricator Hacks . | . . Repair Station Hacks . | . . Recycling Unit Hacks . | . . Scanalyzer . | . . Garrison Access Hacks . | . . Unauthorized Hacks . | . . Terminals . | . . Fabricators . | . . Repair Stations . | . . Recycling Units . | . . Scanalyzers . | . . Garrison Access . | . . Data Cores Recovered . | . . Used . | . . Hacking Detections . | . . Full Trace Events . | . . Feedback Events . | . . Feedback Blocked . | . . Robot Schematics Acquired . | . . Robots Built . | . . Authchips . | . . Time . | . . Total Robot Build Rating . | . . Part Schematics Acquired . | . . Parts Built . | . . Authchips . | . . Time . | . . Total Part Build Rating . | . . Parts Repaired . | . . Time . | . . Parts Recycled . | . . Recycled Matter . | . . Retrieved Matter . | . . Retrieved Components . | . . Parts Scanalyzed . | . . Part Schematics Acquired . | . . Parts Damaged . | . . Bothacking | -11 -10 ------------ Run | Yrd Mat Used RIF Installer . | . . Robots Hacked . | . . Non-combat . | . . Combat . | . . Robot Hacks Applied . | . . Relay Couplers Released . | . . Fabnet Peak Effective % . | . . Robots Rewired . | . . Allies Hacked . | . . Hacks Repelled . | . . Allies | -11 -10 -------- Run | Yrd Mat Total Allies . | . . Largest Group . | . . Highest-Rated Group . | . . Highest-Rated Ally . | . . Total Orders . | . . Ally Attacks . | . . Total Damage . | . . Kills . | . . Allies Corrupted . | . . Allies Melted . | . . Intel | -11 -10 ------- Run | Yrd Mat Robot Analysis Total . | . . Derelict Logs Recovered . | . . Drone Launches . | . . Drone Recoveries . | . . Exploration | -11 -10 ------------- Run | Yrd Mat Turns Passed 2907 | 2825 82 Spaces Moved 213 | 152 61 Core 3 | 3 . Treads 81 | 81 . Legs . | . . Wheels 129 | 68 61 Hover . | . . Flight . | . . Fastest Speed 50 | 50 95 Average Speed 120 | 125 107 Slowest Speed 160 | 160 110 Overloaded Moves . | . . Propulsion Burnouts . | . . Robots Hopped . | . . Cave-ins Triggered . | . . Exploration Rate (%) 16 | 16 16 Regions Visited 1 Branch Regions . Pre-discovered Areas . | . . Known Exits Taken . | . . Unknown Exits Taken 1 | 1 . Scrap Searched . | . . Spaces Dug . | . . Terrain Destroyed 18 | 18 . Melee . | . . Projectile . | . . AOE 18 | 18 . Terrain Rammed . | . . Walls Destroyed . | . . Machines Disabled . | . . Actions | -11 -10 --------- Run | Yrd Mat Total 2785 | 2710 75 Wait 2461 | 2461 . Move 212 | 151 61 Hop . | . . Pick Up 20 | 11 9 Fast Attach 9 | 9 . Attach 6 | 6 . Detach . | . . Swap 5 | 2 3 Drop 1 | . 1 Fire 59 | 58 1 Melee . | . . Ram . | . . Kick . | . . Crush . | . . Escape Stasis . | . . Rewire 12 | 12 . Trap . | . . Miscellaneous . | . . Route ------- -11/Scrapyard -10/Materials History --------- Turn | Location | Event 15 | -11/Scrapyard | Discovered new exit (range 15) 2496 | -11/Scrapyard | Assembled infested the area 2674 | -11/Scrapyard | Core integrity fell below 50% 2765 | -11/Scrapyard | Lost 8 parts (2p3n1u2w) 2769 | -11/Scrapyard | Core integrity fell below 20% 2826 | -11/Scrapyard | Entered Materials 2856 | -10/Materials | Build established: Scavenger-Mutant 2908 | -10/Materials | Destroyed by G-47 Trooper with Particle Gun Last Messages --------------- 02826_ ALERT: A rogue bot has emerged from the scrapyard. Terminate on contact. 02846_ Acquired Lrg. Storage Unit. 02869_ K-01 Serf collects debris. 02873_ Acquired Shield Generator. 02873_ K-01 Serf cleans the Processing Tank. 02876_ Acquired VTOL Module. 02880_ K-01 Serf collects debris. 02880_ Acquired VTOL Module. 02884_ K-01 Serf collects debris. 02884_ Acquired EM Shotgun. 02889_ K-01 Serf collects debris. 02890_ Dropped Lgt. Assault Rifle. 02892_ Acquired EM Shotgun. 02894_ K-01 Serf collects debris. 02900_ W-16 Scout destroyed. 02901_ K-01 Serf collects debris. 02903_ Acquired 16 matter. 02904_ T-07 Excavator is excavating. 02905_ K-01 Serf collects debris. Map ----- +----------------------------------------------------+ | ??????????????????????????????????? | | ??????????????????????????????????? | | ??????????????????????????????????? | | ??????????????????????????????????? | | ??????????????????????????????????? | | ??????????????????????????????????? | | ??????????????????????????????????? | | ??????????????????????????????????? | | ??????????????????????????????????? | | ??????????????????????????????????? | | ?????????? ???????????????????????? | | ?????????? ??#????????????????????? | | ?????????# #????????????????????? | | ????????? ????????????????????? | | ????????? gg????????????????????? | | ????????? T ?????????????????????? | | ????????? ?????????????????????? | | ????????? ?????????????????????? | | ?????????# ?????????????????????? | | ?????????# ??????????????????????? | | ?????????# ??????????????????????? | | ?????????# ??????????????????????? | | ?????????# ??????????????????????? | | ?????????# #??????????????????????? | | ?????????# #??????????????????????? | | ?????????#@#??????????????????????? | | ?????????# #?????????? #??????????? | | ?????????# ######### ###????????? | | ???#####?# ??????? | | ???# [ #?# ! * ??????? | | ???#[ ###k ??????? | | ???# ??????? | | ???# ##+???????? | | ???#!! """ #?????????? | | ???#! ^ """ #?????????? | | ######## """ #?????????? | | # # """ ####?????????? | | # # """ #????????????? | | # """ + #????????????? | | # """ # ## ###????????????? | | # """ # """ #? ??????????????? | | # # """ #?? ?????????????? | | ######## """ #?????????????????? | | ???????# #?????????????????? | | ???????# #?????????????????? | | ######## #?????????????????? | | # # #?????????????????? | | # #!! #?????????????????? | | # # ! #?????????????????? | | # #! #?######??????????? | +----------------------------------------------------+ Best States ------------- Heat Dissipation 25 Energy Generation 10 Energy Capacity 250 Matter Stores 300 Matter Capacity 300 Sight Range 16 Terrain Scan Range 16 Terrain Scan Density 10 Evasion (%) 44 Recoil Reduction 1 Item Schematics ----------------- None Robot Schematics ------------------ None Fabricated ------------ Nothing Alien Tech Used ----------------- None Achievements -------------- None Challenges ------------ None Game ------ Seed LatentSapperShifter Manual? 0 Play Time 00:06:21 Cumulative 731.1 hours Start 2024.05.18 @ 17:51:10 End 2024.05.18 @ 17:56:33 Sessions 1 Manual Loads 0 Difficulty Rogue Special Mode None Game No. 300 Rogue 270 Adventurer 3 Explorer 27 Win Type - Total 16 Types 10/3/1/1/0/1/0/0/0 Lore% 91 Gallery% 96 Achievement% 85 Wizard Run 0 Options --------- Layout 2 ASCII 0 Keyboard 0 Movement Numpad Keybinds 0 Fullscreen 2 Font 24/Smallcaps Map View 50x44 Zoom Use 0% Tactical HUD 1 Map Filters NONE Filters NONE Steam 1 RUN: b1950e76-6558-4555-952c-7782e22c09e4